[Event "Titled Tuesday Blitz June 13 Late 2023"]
[White "Zwirs, Nico"]
[Black "Perske, Thore"]
[WhiteFideId "1036432"]
[BlackFideId "12902195"]
[WhiteElo "2381"]
[BlackElo "2336"]
[Result "1-0"]
[Round "4"]
[TimeControl "180+2"]
[Date "2023.06.13"]
[WhiteClock "0:00:45"]
[BlackClock "0:01:01"]
[Board "54"]

1. e4 {[%clk 0:03:00]}  e6 {[%clk 0:03:00]} 2. d4 {[%clk 0:03:00]}  d5 {[%clk 0:03:00]} 3. Nc3 {[%clk 0:03:01]}  Nf6 {[%clk 0:03:01]} 4. e5 {[%clk 0:03:01]}  Nfd7 {[%clk 0:03:01]} 5. f4 {[%clk 0:03:01]}  c5 {[%clk 0:03:01]} 6. Nf3 {[%clk 0:03:02]}  Nc6 {[%clk 0:03:02]} 7. Be3 {[%clk 0:03:02]}  b6 {[%clk 0:03:02]} 8. Bb5 {[%clk 0:03:00]}  Bb7 {[%clk 0:03:02]} 9. Qd2 {[%clk 0:03:00]}  Be7 {[%clk 0:03:03]} 10. O-O-O {[%clk 0:03:00]}  a6 {[%clk 0:02:59]} 11. Bxc6 {[%clk 0:03:00]}  Bxc6 {[%clk 0:03:00]} 12. f5 {[%clk 0:03:00]}  b5 {[%clk 0:02:59]} 13. fxe6 {[%clk 0:03:00]}  fxe6 {[%clk 0:02:59]} 14. Ne2 {[%clk 0:02:59]}  O-O {[%clk 0:02:44]} 15. dxc5 {[%clk 0:02:58]}  Nxc5 {[%clk 0:02:41]} 16. Ned4 {[%clk 0:02:57]}  Bd7 {[%clk 0:02:37]} 17. h4 {[%clk 0:02:52]}  Ne4 {[%clk 0:02:37]} 18. Qe1 {[%clk 0:02:52]}  a5 {[%clk 0:02:35]} 19. Kb1 {[%clk 0:02:51]}  b4 {[%clk 0:02:34]} 20. Ng5 {[%clk 0:02:38]}  Bxg5 {[%clk 0:02:24]} 21. hxg5 {[%clk 0:02:36]}  Qe7 {[%clk 0:02:16]} 22. Qh4 {[%clk 0:02:30]}  g6 {[%clk 0:02:15]} 23. Ne2 {[%clk 0:02:09]}  a4 {[%clk 0:02:14]} 24. Ng3 {[%clk 0:02:08]}  Nxg3 {[%clk 0:02:02]} 25. Qxg3 {[%clk 0:02:09]}  b3 {[%clk 0:01:58]} 26. cxb3 {[%clk 0:02:10]}  axb3 {[%clk 0:01:58]} 27. a3 {[%clk 0:02:10]}  Rxa3 {[%clk 0:01:48]} 28. bxa3 {[%clk 0:02:11]}  Qxa3 {[%clk 0:01:48]} 29. Rd2 {[%clk 0:02:10]}  Ra8 {[%clk 0:01:43]} 30. Bd4 {[%clk 0:02:07]}  Bb5 {[%clk 0:01:36]} 31. Qh3 {[%clk 0:02:01]}  Qe7 {[%clk 0:01:34]} 32. Rb2 {[%clk 0:01:25]}  Bc4 {[%clk 0:01:34]} 33. Rf2 {[%clk 0:01:05]}  b2 {[%clk 0:01:18]} 34. Rxb2 {[%clk 0:00:58]}  Qf7 {[%clk 0:01:17]} 35. Rb6 {[%clk 0:00:49]}  Ba2+ {[%clk 0:01:09]} 36. Kb2 {[%clk 0:00:47]}  Re8 {[%clk 0:01:01]} 37. Kxa2 {[%clk 0:00:45]} 1-0


[Site "https://www.chess.com"]

[Event "Titled Tuesday Blitz June 13 Late 2023"]
[White "Hnydiuk, Aleksander"]
[Black "Papasimakopoulos, Alexandros"]
[WhiteFideId "1109057"]
[BlackFideId "4244125"]
[WhiteElo "2374"]
[BlackElo "2359"]
[Result "1-0"]
[Round "4"]
[TimeControl "180+2"]
[Date "2023.06.13"]
[WhiteClock "0:00:05"]
[BlackClock "0:00:04"]
[Board "55"]

1. e4 {[%clk 0:03:00]}  e6 {[%clk 0:02:54]} 2. d4 {[%clk 0:02:59]}  d5 {[%clk 0:02:55]} 3. Nc3 {[%clk 0:02:59]}  Bb4 {[%clk 0:02:55]} 4. e5 {[%clk 0:02:59]}  c5 {[%clk 0:02:55]} 5. a3 {[%clk 0:02:59]}  Bxc3+ {[%clk 0:02:56]} 6. bxc3 {[%clk 0:02:59]}  Nc6 {[%clk 0:02:57]} 7. Qg4 {[%clk 0:02:56]}  g6 {[%clk 0:02:57]} 8. h4 {[%clk 0:02:51]}  h6 {[%clk 0:02:57]} 9. h5 {[%clk 0:02:38]}  g5 {[%clk 0:02:55]} 10. f4 {[%clk 0:02:22]}  f5 {[%clk 0:02:54]} 11. exf6 {[%clk 0:01:50]}  Nxf6 {[%clk 0:02:53]} 12. Qd1 {[%clk 0:01:45]}  g4 {[%clk 0:02:50]} 13. Bd3 {[%clk 0:01:39]}  Qa5 {[%clk 0:02:08]} 14. Bg6+ {[%clk 0:01:36]}  Kf8 {[%clk 0:02:09]} 15. Bd2 {[%clk 0:01:29]}  Kg7 {[%clk 0:02:04]} 16. Ne2 {[%clk 0:01:15]}  c4 {[%clk 0:02:01]} 17. f5 {[%clk 0:01:10]}  exf5 {[%clk 0:01:32]} 18. O-O {[%clk 0:01:10]}  Ne7 {[%clk 0:01:29]} 19. Bf4 {[%clk 0:01:09]}  Nxg6 {[%clk 0:01:18]} 20. hxg6 {[%clk 0:01:09]}  Bd7 {[%clk 0:01:13]} 21. Be5 {[%clk 0:01:09]}  Rae8 {[%clk 0:00:46]} 22. Nf4 {[%clk 0:01:06]}  Rhf8 {[%clk 0:00:36]} 23. Nh5+ {[%clk 0:01:02]}  Kxg6 {[%clk 0:00:36]} 24. Nxf6 {[%clk 0:01:02]}  Rxf6 {[%clk 0:00:37]} 25. Bxf6 {[%clk 0:01:01]}  Kxf6 {[%clk 0:00:38]} 26. Qxg4 {[%clk 0:01:00]}  Qxc3 {[%clk 0:00:30]} 27. Qh4+ {[%clk 0:01:00]}  Kg7 {[%clk 0:00:27]} 28. Rae1 {[%clk 0:00:57]}  Re3 {[%clk 0:00:17]} 29. Rxe3 {[%clk 0:00:51]}  Qxe3+ {[%clk 0:00:18]} 30. Kh1 {[%clk 0:00:50]}  Qg5 {[%clk 0:00:18]} 31. Qh2 {[%clk 0:00:42]}  Bc6 {[%clk 0:00:13]} 32. Qe5+ {[%clk 0:00:39]}  Qf6 {[%clk 0:00:12]} 33. Rxf5 {[%clk 0:00:36]}  Qxe5 {[%clk 0:00:12]} 34. Rxe5 {[%clk 0:00:36]}  Kf6 {[%clk 0:00:12]} 35. Kh2 {[%clk 0:00:35]}  b5 {[%clk 0:00:09]} 36. Kg3 {[%clk 0:00:34]}  a5 {[%clk 0:00:10]} 37. c3 {[%clk 0:00:34]}  b4 {[%clk 0:00:05]} 38. cxb4 {[%clk 0:00:33]}  axb4 {[%clk 0:00:06]} 39. axb4 {[%clk 0:00:33]}  c3 {[%clk 0:00:06]} 40. Re3 {[%clk 0:00:32]}  c2 {[%clk 0:00:07]} 41. Rc3 {[%clk 0:00:32]}  Ba4 {[%clk 0:00:08]} 42. Kf4 {[%clk 0:00:31]}  Ke6 {[%clk 0:00:08]} 43. b5 {[%clk 0:00:23]}  Bxb5 {[%clk 0:00:04]} 44. Rxc2 {[%clk 0:00:23]}  Bc4 {[%clk 0:00:03]} 45. Rb2 {[%clk 0:00:21]}  Kf6 {[%clk 0:00:04]} 46. Rb6+ {[%clk 0:00:21]}  Kg7 {[%clk 0:00:04]} 47. Ke5 {[%clk 0:00:21]}  h5 {[%clk 0:00:04]} 48. Rd6 {[%clk 0:00:19]}  h4 {[%clk 0:00:04]} 49. Kf4 {[%clk 0:00:13]}  Kf7 {[%clk 0:00:01]} 50. Kg4 {[%clk 0:00:11]}  Ke7 {[%clk 0:00:01]} 51. Rh6 {[%clk 0:00:11]}  Bf1 {[%clk 0:00:02]} 52. Kh3 {[%clk 0:00:10]}  Kf7 {[%clk 0:00:01]} 53. Rxh4 {[%clk 0:00:10]}  Kf6 {[%clk 0:00:02]} 54. Rh5 {[%clk 0:00:10]}  Bc4 {[%clk 0:00:02]} 55. Re5 {[%clk 0:00:10]}  Kg6 {[%clk 0:00:02]} 56. Kg3 {[%clk 0:00:11]}  Kf6 {[%clk 0:00:02]} 57. Kf4 {[%clk 0:00:11]}  Bb3 {[%clk 0:00:02]} 58. g4 {[%clk 0:00:11]}  Bc4 {[%clk 0:00:03]} 59. Rf5+ {[%clk 0:00:10]}  Kg6 {[%clk 0:00:03]} 60. Ke5 {[%clk 0:00:09]}  Be2 {[%clk 0:00:04]} 61. g5 {[%clk 0:00:08]}  Bc4 {[%clk 0:00:04]} 62. Kf4 {[%clk 0:00:08]}  Bb3 {[%clk 0:00:04]} 63. Rf6+ {[%clk 0:00:08]}  Kg7 {[%clk 0:00:05]} 64. Ke5 {[%clk 0:00:07]}  Bc4 {[%clk 0:00:05]} 65. Rd6 {[%clk 0:00:07]}  Bb3 {[%clk 0:00:06]} 66. Rxd5 {[%clk 0:00:07]}  Kg6 {[%clk 0:00:07]} 67. Rb5 {[%clk 0:00:07]}  Bc4 {[%clk 0:00:06]} 68. Rc5 {[%clk 0:00:08]}  Bd3 {[%clk 0:00:06]} 69. Kf4 {[%clk 0:00:07]}  Kf7 {[%clk 0:00:06]} 70. d5 {[%clk 0:00:07]}  Ke7 {[%clk 0:00:06]} 71. Rc6 {[%clk 0:00:06]}  Bf1 {[%clk 0:00:05]} 72. Re6+ {[%clk 0:00:06]}  Kf7 {[%clk 0:00:05]} 73. g6+ {[%clk 0:00:04]}  Kg7 {[%clk 0:00:06]} 74. Kg5 {[%clk 0:00:05]}  Bc4 {[%clk 0:00:06]} 75. Re7+ {[%clk 0:00:05]}  Kf8 {[%clk 0:00:07]} 76. d6 {[%clk 0:00:05]}  Kg8 {[%clk 0:00:07]} 77. Kf6 {[%clk 0:00:05]}  Kf8 {[%clk 0:00:07]} 78. Rc7 {[%clk 0:00:05]}  Ke8 {[%clk 0:00:04]} 79. Rxc4 {[%clk 0:00:05]} 1-0


[Site "https://www.chess.com"]

[Event "Titled Tuesday Blitz June 13 Late 2023"]
[White "Pakleza, Zbigniew"]
[Black "Rios Escobar, Adan"]
[WhiteFideId "1119290"]
[BlackFideId "3403645"]
[WhiteElo "2410"]
[BlackElo "2489"]
[Result "1-0"]
[Round "4"]
[TimeControl "180+2"]
[Date "2023.06.13"]
[WhiteClock "0:00:06"]
[BlackClock "0:00:02"]
[Board "58"]

1. d4 {[%clk 0:03:00]}  Nf6 {[%clk 0:02:57]} 2. Nf3 {[%clk 0:03:01]}  g6 {[%clk 0:02:57]} 3. Bf4 {[%clk 0:03:01]}  Bg7 {[%clk 0:02:55]} 4. e3 {[%clk 0:03:02]}  b6 {[%clk 0:02:55]} 5. h3 {[%clk 0:03:02]}  Bb7 {[%clk 0:02:55]} 6. Be2 {[%clk 0:03:03]}  d6 {[%clk 0:02:56]} 7. O-O {[%clk 0:03:03]}  Nbd7 {[%clk 0:02:56]} 8. Nbd2 {[%clk 0:03:04]}  O-O {[%clk 0:02:56]} 9. Bh2 {[%clk 0:03:04]}  Qe8 {[%clk 0:02:56]} 10. c4 {[%clk 0:03:01]}  Ne4 {[%clk 0:02:53]} 11. Rc1 {[%clk 0:02:59]}  c5 {[%clk 0:02:49]} 12. a3 {[%clk 0:02:42]}  Ndf6 {[%clk 0:02:45]} 13. b4 {[%clk 0:02:24]}  cxd4 {[%clk 0:02:25]} 14. exd4 {[%clk 0:02:19]}  Rd8 {[%clk 0:02:03]} 15. d5 {[%clk 0:02:14]}  Nxd2 {[%clk 0:01:59]} 16. Qxd2 {[%clk 0:02:11]}  Rc8 {[%clk 0:01:50]} 17. Nd4 {[%clk 0:02:06]}  Qa4 {[%clk 0:01:38]} 18. Qe3 {[%clk 0:01:51]}  Rfe8 {[%clk 0:01:31]} 19. Nb5 {[%clk 0:01:05]}  h5 {[%clk 0:00:53]} 20. Rfe1 {[%clk 0:01:03]}  Kh7 {[%clk 0:00:51]} 21. Bf4 {[%clk 0:00:59]}  Qa6 {[%clk 0:00:18]} 22. g4 {[%clk 0:00:49]}  hxg4 {[%clk 0:00:16]} 23. hxg4 {[%clk 0:00:50]}  Kg8 {[%clk 0:00:17]} 24. Kh2 {[%clk 0:00:34]}  Qa4 {[%clk 0:00:17]} 25. Kg3 {[%clk 0:00:20]}  e5 {[%clk 0:00:07]} 26. Bh6 {[%clk 0:00:18]}  Bh8 {[%clk 0:00:06]} 27. Rh1 {[%clk 0:00:14]}  e4 {[%clk 0:00:03]} 28. Nxd6 {[%clk 0:00:12]}  Qd7 {[%clk 0:00:02]} 29. Nxe8 {[%clk 0:00:08]}  Rxe8 {[%clk 0:00:02]} 30. Bg5 {[%clk 0:00:07]}  Bc8 {[%clk 0:00:02]} 31. Rxh8+ {[%clk 0:00:06]}  Kxh8 {[%clk 0:00:01]} 32. Bxf6+ {[%clk 0:00:06]}  Kg8 {[%clk 0:00:01]} 33. Qh6 {[%clk 0:00:06]}  Qd6+ {[%clk 0:00:02]} 34. Qf4 {[%clk 0:00:06]}  Qxf4+ {[%clk 0:00:01]} 35. Kxf4 {[%clk 0:00:06]}  Bd7 {[%clk 0:00:02]} 36. Rh1 {[%clk 0:00:06]}  Bxg4 {[%clk 0:00:02]} 37. Rh8# {[%clk 0:00:06]} 1-0


[Site "https://www.chess.com"]

[Event "Titled Tuesday Blitz June 13 Late 2023"]
[White "Rosen, Eric"]
[Black "Erzhanov, Arman"]
[WhiteFideId "2032562"]
[BlackFideId "4138821"]
[WhiteElo "2331"]
[BlackElo "2138"]
[Result "1-0"]
[Round "4"]
[TimeControl "180+2"]
[Date "2023.06.13"]
[WhiteClock "0:00:50"]
[BlackClock "0:02:18"]
[Board "60"]

1. d4 {[%clk 0:02:33]}  d6 {[%clk 0:03:00]} 2. e4 {[%clk 0:02:31]}  Nf6 {[%clk 0:03:00]} 3. Nc3 {[%clk 0:02:31]}  c6 {[%clk 0:03:01]} 4. a4 {[%clk 0:02:29]}  e5 {[%clk 0:02:59]} 5. Nf3 {[%clk 0:02:27]}  Nbd7 {[%clk 0:02:58]} 6. h3 {[%clk 0:02:26]}  Be7 {[%clk 0:02:59]} 7. Be3 {[%clk 0:02:25]}  O-O {[%clk 0:02:58]} 8. a5 {[%clk 0:02:18]}  Re8 {[%clk 0:02:52]} 9. Bc4 {[%clk 0:02:17]}  h6 {[%clk 0:02:52]} 10. O-O {[%clk 0:02:17]}  Qc7 {[%clk 0:02:51]} 11. Re1 {[%clk 0:02:16]}  Nf8 {[%clk 0:02:51]} 12. Qb1 {[%clk 0:02:09]}  Ng6 {[%clk 0:02:50]} 13. Qa2 {[%clk 0:02:09]}  Bf8 {[%clk 0:02:50]} 14. Rad1 {[%clk 0:02:04]}  Bd7 {[%clk 0:02:48]} 15. Bxf7+ {[%clk 0:01:51]}  Kh7 {[%clk 0:02:45]} 16. Bxe8 {[%clk 0:01:40]}  Bxe8 {[%clk 0:02:46]} 17. dxe5 {[%clk 0:01:40]}  dxe5 {[%clk 0:02:47]} 18. a6 {[%clk 0:01:07]}  b6 {[%clk 0:02:46]} 19. Qc4 {[%clk 0:01:06]}  Bf7 {[%clk 0:02:45]} 20. Nd5 {[%clk 0:01:02]}  Nxd5 {[%clk 0:02:38]} 21. exd5 {[%clk 0:01:02]}  c5 {[%clk 0:02:28]} 22. Qe4 {[%clk 0:00:57]}  Kg8 {[%clk 0:02:24]} 23. d6 {[%clk 0:00:56]}  Qd8 {[%clk 0:02:22]} 24. Nxe5 {[%clk 0:00:54]}  Nxe5 {[%clk 0:02:22]} 25. Qxe5 {[%clk 0:00:55]}  Rc8 {[%clk 0:02:22]} 26. d7 {[%clk 0:00:50]}  Rc7 {[%clk 0:02:22]} 27. Qxc7 {[%clk 0:00:49]}  Qxc7 {[%clk 0:02:22]} 28. d8=Q {[%clk 0:00:49]}  Qxd8 {[%clk 0:02:18]} 29. Rxd8 {[%clk 0:00:50]} 1-0


[Site "https://www.chess.com"]

[Event "Titled Tuesday Blitz June 13 Late 2023"]
[White "Wieczorek, Oskar"]
[Black "Carlstedt, Jonathan"]
[WhiteFideId "1133950"]
[BlackFideId "24614386"]
[WhiteElo "2418"]
[BlackElo "2333"]
[Result "1-0"]
[Round "4"]
[TimeControl "180+2"]
[Date "2023.06.13"]
[WhiteClock "0:00:08"]
[BlackClock "0:00:10"]
[Board "61"]

1. b3 {[%clk 0:02:51]}  d5 {[%clk 0:02:58]} 2. Ba3 {[%clk 0:02:48]}  Nf6 {[%clk 0:02:56]} 3. Nf3 {[%clk 0:02:47]}  Bg4 {[%clk 0:02:55]} 4. e3 {[%clk 0:02:47]}  Nbd7 {[%clk 0:02:54]} 5. h3 {[%clk 0:02:47]}  Bxf3 {[%clk 0:02:52]} 6. Qxf3 {[%clk 0:02:47]}  e5 {[%clk 0:02:52]} 7. Bxf8 {[%clk 0:02:46]}  Kxf8 {[%clk 0:02:53]} 8. g3 {[%clk 0:02:43]}  Qe7 {[%clk 0:02:49]} 9. Bg2 {[%clk 0:02:43]}  c6 {[%clk 0:02:49]} 10. O-O {[%clk 0:02:43]}  h5 {[%clk 0:02:48]} 11. c4 {[%clk 0:02:41]}  e4 {[%clk 0:02:43]} 12. Qf4 {[%clk 0:02:34]}  Qe5 {[%clk 0:02:39]} 13. Nc3 {[%clk 0:02:26]}  Qxf4 {[%clk 0:02:37]} 14. gxf4 {[%clk 0:02:27]}  Nc5 {[%clk 0:02:27]} 15. cxd5 {[%clk 0:01:47]}  cxd5 {[%clk 0:02:28]} 16. Nb5 {[%clk 0:01:47]}  Ke7 {[%clk 0:02:18]} 17. Rfc1 {[%clk 0:01:46]}  Rhc8 {[%clk 0:02:16]} 18. Bf1 {[%clk 0:01:46]}  a6 {[%clk 0:02:12]} 19. Nd4 {[%clk 0:01:45]}  g6 {[%clk 0:02:11]} 20. f3 {[%clk 0:01:12]}  Ne6 {[%clk 0:02:00]} 21. Nxe6 {[%clk 0:01:04]}  Kxe6 {[%clk 0:02:01]} 22. d3 {[%clk 0:00:56]}  exf3 {[%clk 0:01:32]} 23. Kf2 {[%clk 0:00:56]}  Ne8 {[%clk 0:01:32]} 24. Kxf3 {[%clk 0:00:55]}  f5 {[%clk 0:01:32]} 25. e4 {[%clk 0:00:44]}  fxe4+ {[%clk 0:01:30]} 26. dxe4 {[%clk 0:00:45]}  dxe4+ {[%clk 0:01:31]} 27. Kxe4 {[%clk 0:00:45]}  Nd6+ {[%clk 0:01:31]} 28. Kf3 {[%clk 0:00:45]}  b5 {[%clk 0:01:28]} 29. a4 {[%clk 0:00:38]}  Nf5 {[%clk 0:01:12]} 30. axb5 {[%clk 0:00:35]}  axb5 {[%clk 0:01:13]} 31. Bd3 {[%clk 0:00:20]}  Nd4+ {[%clk 0:01:01]} 32. Ke3 {[%clk 0:00:20]}  Nxb3 {[%clk 0:00:42]} 33. Rxc8 {[%clk 0:00:12]}  Rxa1 {[%clk 0:00:27]} 34. Rc6+ {[%clk 0:00:12]}  Ke7 {[%clk 0:00:24]} 35. Rxg6 {[%clk 0:00:10]}  b4 {[%clk 0:00:22]} 36. f5 {[%clk 0:00:10]}  Nc5 {[%clk 0:00:20]} 37. Bc4 {[%clk 0:00:10]}  Re1+ {[%clk 0:00:17]} 38. Kd4 {[%clk 0:00:10]}  b3 {[%clk 0:00:15]} 39. f6+ {[%clk 0:00:09]}  Kd7 {[%clk 0:00:14]} 40. f7 {[%clk 0:00:09]}  b2 {[%clk 0:00:12]} 41. f8=Q {[%clk 0:00:08]}  Rd1+ {[%clk 0:00:10]} 42. Kxc5 {[%clk 0:00:08]}  b1=Q {[%clk 0:00:10]} 43. Rg7# {[%clk 0:00:08]} 1-0


[Site "https://www.chess.com"]

[Event "Titled Tuesday Blitz June 13 Late 2023"]
[White "Martins, Bruno Andre Leite"]
[Black "Ammar, Sedrani"]
[WhiteFideId "1942255"]
[BlackFideId "9312331"]
[WhiteElo "2241"]
[BlackElo "2115"]
[Result "1-0"]
[Round "4"]
[TimeControl "180+2"]
[Date "2023.06.13"]
[WhiteClock "0:00:15"]
[BlackClock "0:00:08"]
[Board "65"]

1. e4 {[%clk 0:02:58]}  e6 {[%clk 0:02:55]} 2. d4 {[%clk 0:02:57]}  d5 {[%clk 0:02:55]} 3. Nd2 {[%clk 0:02:58]}  c5 {[%clk 0:02:53]} 4. Ngf3 {[%clk 0:02:57]}  Nc6 {[%clk 0:02:52]} 5. exd5 {[%clk 0:02:55]}  exd5 {[%clk 0:02:52]} 6. Bb5 {[%clk 0:02:53]}  Nf6 {[%clk 0:02:51]} 7. Qe2+ {[%clk 0:02:52]}  Be7 {[%clk 0:02:46]} 8. dxc5 {[%clk 0:02:52]}  O-O {[%clk 0:02:45]} 9. Nb3 {[%clk 0:02:52]}  Re8 {[%clk 0:02:43]} 10. Be3 {[%clk 0:02:52]}  Ng4 {[%clk 0:02:33]} 11. O-O-O {[%clk 0:02:36]}  Nxe3 {[%clk 0:02:29]} 12. Qxe3 {[%clk 0:02:25]}  a6 {[%clk 0:02:17]} 13. Bxc6 {[%clk 0:02:24]}  bxc6 {[%clk 0:02:18]} 14. Rhe1 {[%clk 0:02:20]}  Bg4 {[%clk 0:02:13]} 15. Qf4 {[%clk 0:02:03]}  Bxf3 {[%clk 0:02:07]} 16. Qxf3 {[%clk 0:02:04]}  a5 {[%clk 0:02:04]} 17. Nd4 {[%clk 0:01:58]}  Qc7 {[%clk 0:01:41]} 18. Qg3 {[%clk 0:01:47]}  Qxg3 {[%clk 0:01:35]} 19. hxg3 {[%clk 0:01:12]}  Bxc5 {[%clk 0:01:31]} 20. Rxe8+ {[%clk 0:01:12]}  Rxe8 {[%clk 0:01:30]} 21. Nxc6 {[%clk 0:01:13]}  Bxf2 {[%clk 0:01:29]} 22. Rxd5 {[%clk 0:01:11]}  Bxg3 {[%clk 0:01:22]} 23. Nxa5 {[%clk 0:00:50]}  g6 {[%clk 0:01:11]} 24. Nc6 {[%clk 0:00:45]}  Re1+ {[%clk 0:01:10]} 25. Kd2 {[%clk 0:00:45]}  Rg1 {[%clk 0:01:10]} 26. a4 {[%clk 0:00:38]}  Rxg2+ {[%clk 0:01:10]} 27. Kd3 {[%clk 0:00:38]}  h5 {[%clk 0:01:10]} 28. a5 {[%clk 0:00:36]}  h4 {[%clk 0:01:08]} 29. a6 {[%clk 0:00:20]}  Bf2 {[%clk 0:01:08]} 30. Nd4 {[%clk 0:00:21]}  Rg1 {[%clk 0:00:16]} 31. a7 {[%clk 0:00:20]}  Ra1 {[%clk 0:00:16]} 32. Rd8+ {[%clk 0:00:20]}  Kg7 {[%clk 0:00:16]} 33. a8=Q {[%clk 0:00:21]}  Rxa8 {[%clk 0:00:14]} 34. Rxa8 {[%clk 0:00:22]}  h3 {[%clk 0:00:13]} 35. Ra1 {[%clk 0:00:21]}  g5 {[%clk 0:00:12]} 36. Rh1 {[%clk 0:00:17]}  g4 {[%clk 0:00:12]} 37. b4 {[%clk 0:00:16]}  g3 {[%clk 0:00:10]} 38. Rxh3 {[%clk 0:00:15]}  g2 {[%clk 0:00:10]} 39. Nf3 {[%clk 0:00:14]}  Kg6 {[%clk 0:00:11]} 40. Ke2 {[%clk 0:00:14]}  Ba7 {[%clk 0:00:10]} 41. Rg3+ {[%clk 0:00:14]}  Kf5 {[%clk 0:00:10]} 42. Rxg2 {[%clk 0:00:15]}  Ke6 {[%clk 0:00:10]} 43. Kd3 {[%clk 0:00:15]}  f6 {[%clk 0:00:08]} 44. c4 {[%clk 0:00:15]} 1-0


[Site "https://www.chess.com"]

[Event "Titled Tuesday Blitz June 13 Late 2023"]
[White "Kaplan, Avi Harrison"]
[Black "Bellahcene, Bilel"]
[WhiteFideId "30934559"]
[BlackFideId "696358"]
[WhiteElo "1983"]
[BlackElo "2552"]
[Result "0-1"]
[Round "4"]
[TimeControl "180+2"]
[Date "2023.06.13"]
[WhiteClock "0:00:02"]
[BlackClock "0:01:25"]
[Board "66"]

1. g3 {[%clk 0:02:58]}  d5 {[%clk 0:02:59]} 2. Bg2 {[%clk 0:02:59]}  Nc6 {[%clk 0:02:59]} 3. c4 {[%clk 0:02:55]}  d4 {[%clk 0:02:58]} 4. Bxc6+ {[%clk 0:02:55]}  bxc6 {[%clk 0:02:58]} 5. f4 {[%clk 0:02:53]}  h5 {[%clk 0:02:57]} 6. Nf3 {[%clk 0:02:52]}  Bg4 {[%clk 0:02:56]} 7. Ne5 {[%clk 0:02:37]}  Nf6 {[%clk 0:02:50]} 8. Nxc6 {[%clk 0:02:03]}  Qd6 {[%clk 0:02:48]} 9. Ne5 {[%clk 0:02:03]}  h4 {[%clk 0:02:49]} 10. Qa4+ {[%clk 0:01:59]}  Bd7 {[%clk 0:02:48]} 11. Nxd7 {[%clk 0:01:54]}  Nxd7 {[%clk 0:02:49]} 12. Rg1 {[%clk 0:01:44]}  hxg3 {[%clk 0:02:46]} 13. hxg3 {[%clk 0:01:45]}  Rh2 {[%clk 0:02:46]} 14. d3 {[%clk 0:01:17]}  Qe6 {[%clk 0:02:43]} 15. Qc2 {[%clk 0:01:16]}  g5 {[%clk 0:02:42]} 16. Na3 {[%clk 0:01:07]}  a6 {[%clk 0:02:36]} 17. fxg5 {[%clk 0:00:57]}  Ne5 {[%clk 0:02:32]} 18. Kd1 {[%clk 0:00:54]}  Ng4 {[%clk 0:02:30]} 19. Bf4 {[%clk 0:00:47]}  Bg7 {[%clk 0:02:24]} 20. Re1 {[%clk 0:00:43]}  c5 {[%clk 0:02:21]} 21. Qa4+ {[%clk 0:00:36]}  Kf8 {[%clk 0:02:17]} 22. Kd2 {[%clk 0:00:37]}  Kg8 {[%clk 0:02:15]} 23. Qd1 {[%clk 0:00:28]}  Qb6 {[%clk 0:02:04]} 24. Kc2 {[%clk 0:00:21]}  e5 {[%clk 0:02:02]} 25. Bd2 {[%clk 0:00:20]}  Rb8 {[%clk 0:02:02]} 26. b3 {[%clk 0:00:20]}  e4 {[%clk 0:02:02]} 27. Rh1 {[%clk 0:00:19]}  exd3+ {[%clk 0:01:53]} 28. Kb2 {[%clk 0:00:18]}  Rxe2 {[%clk 0:01:52]} 29. Rh4 {[%clk 0:00:16]}  Ne3 {[%clk 0:01:47]} 30. Qc1 {[%clk 0:00:16]}  Qb4 {[%clk 0:01:45]} 31. Nb1 {[%clk 0:00:16]}  Nxc4+ {[%clk 0:01:45]} 32. Qxc4 {[%clk 0:00:14]}  Qxc4 {[%clk 0:01:45]} 33. Ka3 {[%clk 0:00:10]}  Qb5 {[%clk 0:01:42]} 34. Rf4 {[%clk 0:00:09]}  c4 {[%clk 0:01:43]} 35. g6 {[%clk 0:00:06]}  Bf8+ {[%clk 0:01:43]} 36. b4 {[%clk 0:00:05]}  Rxd2 {[%clk 0:01:41]} 37. gxf7+ {[%clk 0:00:05]}  Kg7 {[%clk 0:01:40]} 38. Rg4+ {[%clk 0:00:05]}  Kf6 {[%clk 0:01:39]} 39. Rf4+ {[%clk 0:00:04]}  Ke5 {[%clk 0:01:39]} 40. Re4+ {[%clk 0:00:03]}  Kd5 {[%clk 0:01:30]} 41. Nc3+ {[%clk 0:00:03]}  dxc3 {[%clk 0:01:29]} 42. Rxc4 {[%clk 0:00:02]}  Kxc4 {[%clk 0:01:26]} 43. Rb1 {[%clk 0:00:02]}  Qa5# {[%clk 0:01:25]} 0-1


[Site "https://www.chess.com"]

[Event "Titled Tuesday Blitz June 13 Late 2023"]
[White "Lalanne, Pablo"]
[Black "Katz, Alexander"]
[WhiteFideId "112151"]
[BlackFideId "2039796"]
[WhiteElo "2120"]
[BlackElo "2389"]
[Result "0-1"]
[Round "4"]
[TimeControl "180+2"]
[Date "2023.06.13"]
[WhiteClock "0:00:16"]
[BlackClock "0:00:54"]
[Board "68"]

1. e4 {[%clk 0:03:00]}  c6 {[%clk 0:02:43]} 2. d4 {[%clk 0:02:59]}  d5 {[%clk 0:02:43]} 3. Nd2 {[%clk 0:02:59]}  dxe4 {[%clk 0:02:42]} 4. Nxe4 {[%clk 0:02:59]}  Nf6 {[%clk 0:02:43]} 5. Nxf6+ {[%clk 0:02:59]}  exf6 {[%clk 0:02:44]} 6. c3 {[%clk 0:02:59]}  Bd6 {[%clk 0:02:43]} 7. Bd3 {[%clk 0:02:59]}  O-O {[%clk 0:02:44]} 8. Qc2 {[%clk 0:02:59]}  h5 {[%clk 0:02:44]} 9. Bd2 {[%clk 0:02:58]}  Re8+ {[%clk 0:02:43]} 10. Ne2 {[%clk 0:02:58]}  Nd7 {[%clk 0:02:44]} 11. O-O-O {[%clk 0:02:58]}  Nf8 {[%clk 0:02:44]} 12. Kb1 {[%clk 0:02:58]}  b5 {[%clk 0:02:43]} 13. h3 {[%clk 0:02:57]}  Be6 {[%clk 0:02:38]} 14. f4 {[%clk 0:02:51]}  Bd5 {[%clk 0:02:37]} 15. Rhg1 {[%clk 0:02:47]}  h4 {[%clk 0:02:35]} 16. g4 {[%clk 0:02:25]}  g6 {[%clk 0:02:23]} 17. Ka1 {[%clk 0:02:12]}  a5 {[%clk 0:02:05]} 18. Be1 {[%clk 0:02:07]}  a4 {[%clk 0:01:57]} 19. Bxh4 {[%clk 0:02:03]}  Bb3 {[%clk 0:01:57]} 20. Qd2 {[%clk 0:01:57]}  Bxd1 {[%clk 0:01:56]} 21. Qxd1 {[%clk 0:01:54]}  a3 {[%clk 0:01:41]} 22. b3 {[%clk 0:01:52]}  b4 {[%clk 0:01:41]} 23. c4 {[%clk 0:01:41]}  c5 {[%clk 0:01:41]} 24. Bf2 {[%clk 0:01:39]}  cxd4 {[%clk 0:01:39]} 25. Bxd4 {[%clk 0:01:35]}  Bxf4 {[%clk 0:01:38]} 26. Bc5 {[%clk 0:01:06]}  Qc7 {[%clk 0:01:10]} 27. Bxb4 {[%clk 0:00:55]}  Rad8 {[%clk 0:01:09]} 28. Bxa3 {[%clk 0:00:51]}  Qa7 {[%clk 0:00:58]} 29. Bxf8 {[%clk 0:00:27]}  Rxe2 {[%clk 0:00:57]} 30. Bxe2 {[%clk 0:00:17]}  Rxd1+ {[%clk 0:00:56]} 31. Rxd1 {[%clk 0:00:16]}  Kxf8 {[%clk 0:00:54]} 0-1


[Site "https://www.chess.com"]